bitfinex/quotes_SOLUSD_20260105
["timestamp","ask_amount","ask_price","bid_price","bid_amount"]
[1767648427783,0.38903265,138.18,138.15,0.66568063]
[1767648427975,7.93163783,138.19,138.15,0.66568063]
[1767648428295,0.69516053,138.19,138.15,0.66568063]
[1767648429465,0.38597168,138.18,138.12,20.41970896]
[1767648429669,0.38597168,138.18,138.13,0.66568063]
[1767648430575,7.62291663,138.18,138.13,0.66568063]
[1767648435204,0.69206864,138.17,138.13,0.66568063]
[1767648436678,0.69206864,138.17,138.11,7.90628594]
[1767648437604,0.69206864,138.17,138.12,0.66568063]
[1767648438206,0.38903265,138.16,138.12,0.66568063]
[1767648439209,0.69516053,138.17,138.12,0.66568063]
[1767648439705,0.69516053,138.17,138.12,7.90548942]
[1767648439893,0.69516053,138.17,138.13,0.66568063]
[1767648441912,0.68903828,138.13,138.08,0.66568063]
[1767648442209,0.68606822,138.11,138.07,0.66568063]
[1767648442511,0.39497307,138.1,138.07,0.66568063]
[1767648444398,0.36497308,138.1,138.07,0.66568063]
[1767648444699,7.24070341,138.11,138.07,0.66568063]
[1767648445728,11.04913488,138.11,138.07,0.66568063]
[1767648446287,11.74429541,138.11,138.07,0.66568063]
[1767648446598,0.35627169,138.1,138.06,0.76568063]
[1767648448212,7.59747143,138.1,138.06,0.76568063]
[1767648449090,0.35627169,138.1,138.06,0.76568063]
[1767648449812,7.59742832,138.1,138.06,0.76568063]
[1767648450517,0.35627169,138.1,138.06,0.76568063]
[1767648452720,7.59743754,138.1,138.06,0.76568063]
[1767648453813,11.40586901,138.1,138.06,0.76568063]
[1767648455916,7.59743754,138.1,138.06,0.76568063]
[1767648456115,0.69177164,138.09,138.06,0.1]
[1767648457423,0.66177165,138.09,138.06,0.1]
[1767648458131,7.24167624,138.09,138.06,0.1]
[1767648459525,0.69617894,138.08,138.06,0.1]
[1767648460624,0.66617895,138.08,138.06,0.1]
[1767648461023,7.24167624,138.09,138.06,0.78551475]
[1767648463426,0.69217579,138.08,138.06,0.1]
[1767648463615,0.2008266,138.07,138.04,0.68551475]
[1767648464704,7.44376032,138.07,138.04,0.68551475]
[1767648464930,7.41376033,138.07,138.04,0.68551475]
[1767648465931,7.41376033,138.07,138.03,0.78551475]
[1767648469034,0.6872623,138.06,138.03,0.78551475]
[1767648470028,0.16716349,138.06,138.03,0.78551475]
[1767648470828,7.41064775,138.06,138.03,0.78551475]
[1767648471012,7.24348426,138.06,138.03,0.78551475]
[1767648471215,7.41064775,138.06,138.03,0.78551475]
[1767648471644,0.69088879,138.05,138.02,5.74944808]
[1767648472132,0.69088879,138.05,138.02,5.67530591]
[1767648472816,0.59088879,138.04,138.02,0.02585783]
[1767648473822,0.099,138.04,138.02,0.02585783]
[1767648474126,0.099,138.04,137.99,0.81150689]
[1767648474127,0.56037065,138.03,137.99,0.81150689]
[1767648474517,0.1036137,138.02,137.99,0.81150689]
[1767648474933,7.34933057,138.02,137.99,0.1]
[1767648475239,11.15776204,138.02,137.99,0.1]
[1767648475420,7.34933057,138.02,137.99,0.1]
[1767648475619,11.15776204,138.02,137.99,0.1]
[1767648475823,7.34933057,138.02,137.99,0.1]
[1767648476136,11.15776204,138.02,137.99,0.1]
[1767648476940,29.27107895,138.02,137.99,0.1]
[1767648477138,7.2450137,138.03,137.99,0.81150689]
[1767648477316,20.5440137,138.03,137.99,0.81150689]
[1767648477518,0.56037065,138.02,137.99,0.1]
[1767648479040,7.34946544,138.01,137.99,0.1]
[1767648481044,0.1036137,138.01,137.99,0.1]
[1767648481225,7.34445712,138.02,137.99,0.81569479]
[1767648481536,0.56503096,138.04,137.99,0.81569479]
[1767648481944,13.76503096,138.05,137.99,0.81569479]
[1767648482520,20.4439823,138.05,137.99,0.81569479]
[1767648484239,20.4439823,138.05,138.0,0.71569479]
[1767648484447,18.93007442,138.06,138.0,0.71569479]
[1767648485844,18.93007442,138.06,138.02,0.71569479]
[1767648490049,26.17336271,138.06,138.02,0.71569479]
[1767648491832,26.73373336,138.06,138.02,0.71569479]
[1767648492755,0.1036137,138.05,138.02,0.71569479]
[1767648493051,26.73839367,138.06,138.02,0.71569479]
[1767648493632,0.099,138.05,138.01,0.71569479]
[1767648494137,0.099,138.05,138.0,62.31569479]
[1767648494955,0.099,138.05,138.0,69.56207101]
[1767648499342,26.73839367,138.06,138.01,0.71569479]
[1767648499556,0.099,138.05,138.01,0.71569479]
[1767648499963,26.73839367,138.06,138.01,0.71569479]
[1767648501853,18.93007442,138.06,138.02,0.71569479]
[1767648507566,26.1733163,138.06,138.02,0.71569479]
[1767648510774,18.93007442,138.06,138.02,0.71569479]
[1767648511670,19.49044507,138.06,138.02,0.71569479]
[1767648512263,26.73370152,138.06,138.02,0.71569479]
[1767648512765,26.17333087,138.06,138.02,0.71569479]
[1767648516585,26.27233087,138.06,138.02,0.71569479]
[1767648517266,19.02907442,138.06,138.02,0.71569479]
[1767648519579,26.27241547,138.06,138.02,0.71569479]
[1767648521486,0.56037065,138.05,138.02,0.71569479]
[1767648522168,26.73844643,138.06,138.02,0.71569479]
[1767648522487,0.099,138.05,138.0,68.84630855]
[1767648522788,0.099,138.05,138.01,0.70229938]
[1767648522966,26.73844643,138.06,138.01,0.70229938]
[1767648526101,0.099,138.05,138.01,0.70229938]
[1767648526381,0.56037065,138.04,137.99,0.80229938]
[1767648530187,7.80499662,138.04,137.99,0.80229938]
[1767648530690,0.1036137,138.03,137.99,0.80229938]
[1767648534291,0.1036137,138.03,138.0,0.66187934]
[1767648537088,0.1036137,138.03,137.99,0.76187934]
[1767648539394,0.1036137,138.03,137.99,0.1]
[1767648540597,0.55580308,138.02,137.99,0.1]
[1767648540774,0.55580308,138.02,137.98,0.1]
[1767648541490,0.46503096,138.01,137.98,0.1]
[1767648541884,18.1112252,138.04,137.98,0.78350038]
[1767648542082,0.099,138.03,137.98,0.78350038]
[1767648543011,0.099,138.03,137.99,0.68350038]
[1767648545201,0.56360938,138.0,137.97,0.1]
[1767648545499,0.56360938,138.0,137.95,0.1]
[1767648545882,0.56475401,137.98,137.95,0.1]
[1767648546396,9.65520749,137.97,137.95,0.1]
[1767648546780,8.67054254,137.96,137.95,0.1]
[1767648547193,8.67054254,137.96,137.95,0.78350038]
[1767648548714,8.67054254,137.96,137.95,0.1]
[1767648548891,8.67054254,137.96,137.94,0.68350038]
[1767648549099,9.23529655,137.96,137.93,0.1]
[1767648549493,6.77984246,137.95,137.93,0.78350038]
[1767648551384,6.77984246,137.95,137.93,0.1]
[1767648551590,14.02900573,137.95,137.93,0.1]
[1767648551787,14.70707847,137.95,137.93,0.1]
[1767648552193,14.70707847,137.95,137.91,1e-08]
[1767648552194,3.82105199,137.94,137.91,1e-08]
[1767648552405,3.82105199,137.92,137.87,0.1]
[1767648552711,0.67922893,137.9,137.87,0.1]
[1767648552911,13.87922893,137.9,137.87,0.1]
[1767648553099,20.73257147,137.9,137.87,0.1]
[1767648553524,7.25215751,137.89,137.87,0.1]
[1767648553702,7.51876689,137.89,137.87,0.1]
[1767648554124,7.51876689,137.89,137.86,0.1]
[1767648554813,4.0917463,137.87,137.83,0.68350038]
[1767648555212,0.67922893,137.88,137.83,0.68350038]
[1767648555415,7.93205725,137.88,137.83,0.68350038]
[1767648555902,21.13205725,137.88,137.83,0.68350038]
[1767648559112,24.95310924,137.88,137.83,0.68350038]
[1767648559504,0.67510274,137.86,137.83,0.68350038]
[1767648559706,0.67510274,137.86,137.81,61.6]
[1767648559707,0.67510274,137.86,137.82,0.68350038]
[1767648559915,7.92924241,137.86,137.82,0.68350038]
[1767648560929,7.25413967,137.86,137.82,0.68350038]
[1767648561220,4.49615473,137.85,137.81,62.28350038]
[1767648561409,4.49615473,137.85,137.77,126.39341092]
[1767648561410,4.0917463,137.84,137.79,0.68350038]
[1767648561610,0.67105865,137.83,137.79,0.68350038]
[1767648561828,0.67922893,137.84,137.79,0.68350038]
[1767648562321,7.93407014,137.84,137.79,0.68350038]
[1767648563023,7.9338829,137.85,137.8,0.68350038]
[1767648563595,0.26660938,137.84,137.8,0.68350038]
[1767648563912,11.75493489,137.85,137.8,0.68350038]
[1767648564116,7.9338829,137.85,137.8,0.68350038]
[1767648565622,0.67922893,137.85,137.81,0.68350038]
[1767648566796,7.93356566,137.85,137.81,0.68350038]
[1767648567414,21.15310496,137.86,137.81,0.68350038]
[1767648567618,24.97415695,137.86,137.81,0.68350038]
[1767648568240,21.15310496,137.86,137.81,0.68350038]
[1767648569113,24.97415695,137.86,137.81,0.68350038]
[1767648569326,0.26660938,137.85,137.81,0.68350038]
[1767648569697,24.97415695,137.86,137.81,0.68350038]
[1767648570017,0.26660938,137.85,137.8,0.68350038]
[1767648570702,0.26660938,137.85,137.8,7.94026616]
[1767648570998,0.26660938,137.85,137.81,0.67061999]
[1767648571518,7.52110217,137.85,137.81,0.67061999]
[1767648579224,11.34215416,137.85,137.81,0.67061999]
[1767648579425,0.67510274,137.84,137.79,0.67061999]
[1767648580631,13.49069431,137.83,137.79,0.67061999]
[1767648580808,0.67105865,137.82,137.79,0.67061999]
[1767648581010,7.92710365,137.82,137.77,0.67061999]
[1767648583014,0.66709504,137.8,137.77,0.67061999]
[1767648583408,7.25643833,137.81,137.77,0.67061999]
[1767648585637,7.97146379,137.82,137.77,0.67061999]
[1767648585814,49.56824367,137.94,137.78,0.67061999]
[1767648585815,13.93550192,137.84,137.78,0.67061999]
[1767648586910,0.23069912,137.86,137.79,0.67061999]
[1767648587929,0.70590234,137.82,137.79,0.67061999]
[1767648588131,0.67590235,137.82,137.79,0.67061999]
[1767648590330,0.67590235,137.82,137.78,0.67061999]
[1767648591328,7.93205415,137.82,137.78,0.67061999]
[1767648591530,0.24020271,137.81,137.77,0.67061999]
[1767648591736,0.67154535,137.8,137.77,0.67061999]
[1767648594016,7.92853096,137.8,137.76,0.1]
[1767648594343,7.25698561,137.8,137.76,0.79039973]
[1767648595138,4.50339762,137.79,137.76,0.1]
[1767648595331,7.93984677,137.79,137.76,0.1]
[1767648595842,7.93984677,137.79,137.76,0.79039973]
[1767648596741,3.82105199,137.8,137.76,0.79039973]
[1767648596742,11.76511024,137.8,137.76,0.79039973]
[1767648597115,7.94405825,137.8,137.76,0.79039973]
[1767648597319,11.76511024,137.8,137.76,0.79039973]
[1767648599040,7.94405825,137.8,137.76,0.79039973]
[1767648600148,0.68692192,137.8,137.76,0.79039973]
[1767648600645,0.68692192,137.81,137.77,0.69039973]
[1767648600947,21.16337829,137.81,137.77,0.69039973]
[1767648601444,4.05034532,137.8,137.76,0.76444404]
[1767648601646,0.68199614,137.79,137.76,0.76444404]
[1767648602143,0.23416985,137.78,137.76,0.1]
[1767648602353,4.49856987,137.77,137.76,1e-08]
[1767648602646,4.49856987,137.77,137.74,0.1]
[1767648603067,11.75742749,137.77,137.74,0.1]
[1767648603444,4.49418072,137.75,137.72,0.76444404]
[1767648603644,0.68199614,137.76,137.72,0.76444404]
[1767648604142,4.05522184,137.75,137.72,0.1]
[1767648604333,4.49856987,137.74,137.72,0.1]
[1767648604536,13.22,137.75,137.69,0.66444404]
[1767648604537,4.05965532,137.73,137.69,0.66444404]
[1767648604854,0.23860333,137.73,137.69,0.66444404]
[1767648605049,7.83523822,137.72,137.69,0.66444404]
[1767648605227,21.05523822,137.72,137.67,0.66444404]
[1767648605424,13.22,137.72,137.67,0.66444404]
[1767648605637,21.16222217,137.74,137.69,0.66444404]
[1767648606055,0.13516985,137.73,137.69,0.66444404]
[1767648608851,0.13516985,137.73,137.69,7.92708024]
[1767648609034,0.68199614,137.75,137.7,0.66444404]
[1767648609234,13.90199614,137.75,137.7,0.66444404]
[1767648609430,7.93947619,137.79,137.7,0.66444404]
[1767648609630,7.93858978,137.81,137.71,0.66444404]
[1767648609934,13.22,137.8,137.73,0.66444404]
[1767648610330,13.22,137.81,137.73,0.66444404]
[1767648611140,20.61183888,137.81,137.75,0.66444404]
[1767648612531,20.61183888,137.81,137.75,7.92391873]
[1767648612735,0.67652788,137.8,137.74,0.66444404]
[1767648613134,0.67652788,137.8,137.73,7.26026995]
[1767648613631,0.67652788,137.8,137.73,7.92471399]
[1767648613953,0.67652788,137.8,137.74,7.25990346]
[1767648614155,0.67652788,137.8,137.75,7.2595095]
[1767648614356,0.67652788,137.8,137.74,7.92426715]
[1767648614842,0.14058343,137.79,137.73,7.26039276]
[1767648615143,0.14058343,137.79,137.73,7.9248368]
[1767648617160,0.67116844,137.78,137.73,7.9248368]
[1767648618563,7.93911806,137.8,137.74,0.66444404]
[1767648619761,0.13516985,137.79,137.75,0.66444404]
[1767648620258,0.68199614,137.8,137.75,0.66444404]
[1767648621349,0.68199614,137.8,137.75,7.92378458]
[1767648621549,0.68199614,137.85,137.76,0.66444404]
[1767648621755,0.13516985,137.84,137.76,0.66444404]
[1767648622154,0.13516985,137.84,137.77,0.66444404]
[1767648622561,7.39048388,137.84,137.77,7.92260098]
[1767648622752,0.14058343,137.82,137.77,0.66444404]
[1767648622959,0.14058343,137.82,137.75,7.92381396]
[1767648623263,0.14058343,137.82,137.76,0.66444404]
[1767648623459,7.25531403,137.84,137.77,0.66444404]
[1767648623646,18.81668021,137.86,137.77,0.66444404]
[1767648623647,7.38959183,137.85,137.77,0.66444404]
[1767648623849,0.67652788,137.84,137.77,0.66444404]
[1767648624467,0.67652788,137.84,137.78,0.66444404]
[1767648624649,7.25531451,137.83,137.78,0.66444404]
[1767648625158,7.25531451,137.83,137.78,7.92236181]
[1767648625363,7.9315123,137.84,137.79,0.66444404]
[1767648625661,7.93611463,137.86,137.79,0.66444404]
[1767648625868,0.13516985,137.85,137.79,0.66444404]
[1767648626739,7.38966718,137.85,137.8,0.66444404]
[1767648627341,13.35516985,137.86,137.8,0.66444404]
[1767648628965,20.60901447,137.86,137.81,0.66444404]
[1767648631055,0.66327652,137.85,137.8,7.25687779]
[1767648631246,0.63607119,137.85,137.79,7.2572379]
[1767648631452,0.63607119,137.85,137.8,0.70747607]
[1767648631962,0.63607119,137.85,137.79,7.2572379]
[1767648632969,7.25435414,137.85,137.79,7.2572379]
[1767648633164,0.66327652,137.84,137.79,7.2572379]
[1767648634164,0.126769,137.83,137.77,13.22]
[1767648634374,0.126769,137.83,137.77,7.25843486]
[1767648634759,0.126769,137.83,137.78,0.70747607]
[1767648635874,7.38226286,137.83,137.78,0.70747607]
[1767648636176,0.65791144,137.82,137.78,0.70747607]
[1767648636360,0.65791144,137.82,137.77,7.96591093]
[1767648636663,0.65791144,137.82,137.78,0.70747607]
[1767648637463,13.87791144,137.82,137.78,0.70747607]
[1767648637676,13.87791144,137.82,137.75,7.25939049]
[1767648637677,13.87791144,137.82,137.76,0.70747607]
[1767648637883,7.38862067,137.81,137.76,0.70747607]
[1767648641181,0.13208043,137.81,137.77,0.70747607]
[1767648641480,21.1391857,137.82,137.77,0.70747607]
[1767648643166,20.47585596,137.82,137.78,0.70747607]
[1767648644560,13.22,137.82,137.78,0.70747607]
[1767648645483,0.66327652,137.84,137.79,0.70747607]
[1767648645774,13.88327652,137.84,137.79,0.70747607]
[1767648646183,0.126769,137.83,137.78,7.25782845]
[1767648646368,0.126769,137.83,137.78,7.96530452]
[1767648647082,0.126769,137.83,137.79,0.70747607]
[1767648648765,0.126769,137.83,137.8,7.96437011]
[1767648649983,0.66327652,137.85,137.8,7.96437011]
[1767648650173,20.47408621,137.86,137.81,0.70747607]
[1767648651375,13.22,137.86,137.82,0.70747607]
[1767648653763,20.47384392,137.86,137.82,0.70747607]
[1767648654684,0.65791144,137.85,137.82,0.70747607]
[1767648656088,20.47384392,137.86,137.82,0.70747607]
[1767648656688,20.57284392,137.86,137.82,0.70747607]
[1767648656873,0.68540275,137.85,137.8,7.97314908]
[1767648660602,23.61616813,137.86,137.81,0.71650555]
[1767648660765,0.099,137.85,137.8,7.25664353]
[1767648660970,0.099,137.85,137.81,0.71481211]
[1767648661169,21.16516994,137.86,137.81,0.71481211]
[1767648661394,13.22,137.86,137.82,0.71481211]
[1767648663295,20.47375721,137.86,137.82,0.71481211]
[1767648664294,21.15915996,137.86,137.82,0.71481211]
[1767648664481,0.10486403,137.85,137.82,0.71481211]
[1767648664680,21.16508323,137.86,137.82,0.71481211]
[1767648665376,13.22,137.86,137.83,0.71481211]
[1767648666689,0.68540275,137.92,137.84,0.71481211]
[1767648666998,13.90540275,137.92,137.84,0.71481211]
[1767648667174,13.91132602,137.92,137.85,0.71481211]
[1767648668093,13.91132602,137.92,137.87,0.71481211]
[1767648668290,13.22,137.92,137.87,0.71481211]
[1767648668689,13.90540275,137.92,137.87,0.71481211]
[1767648669282,7.94140286,137.93,137.87,0.71481211]
[1767648669486,21.16140286,137.93,137.87,0.71481211]
[1767648670190,0.11061136,137.88,137.83,0.71481211]
[1767648671184,0.11624432,137.86,137.81,0.71481211]
[1767648671580,2.56724251,137.86,137.81,0.71481211]
[1767648671801,0.11624432,137.86,137.81,0.71481211]
[1767648672686,7.37017116,137.86,137.81,0.71481211]
[1767648674908,7.37017116,137.86,137.81,7.97111611]
[1767648675098,7.37017116,137.86,137.82,0.71481211]
[1767648675408,0.11624432,137.86,137.82,0.71481211]
[1767648675989,7.94475827,137.87,137.82,0.71481211]
[1767648676299,0.099,137.86,137.81,7.97111611]
[1767648676499,20.47343225,137.87,137.82,0.71481211]
[1767648676797,20.57243225,137.87,137.82,0.71481211]
[1767648677004,24.39992104,137.87,137.82,0.71481211]
[1767648677909,0.67959737,137.84,137.81,0.71481211]
[1767648678210,0.67959737,137.84,137.79,0.71481211]
[1767648678891,0.67959737,137.84,137.78,7.97227311]
[1767648679614,0.67959737,137.84,137.79,0.71481211]
[1767648680110,0.68540275,137.85,137.79,0.71481211]
[1767648680411,4.51289154,137.85,137.79,0.71481211]
[1767648680912,0.10486403,137.84,137.79,0.71481211]
[1767648681814,0.10486403,137.84,137.8,0.71481211]
[1767648682785,7.25439942,137.85,137.8,0.71481211]
[1767648683016,20.57293575,137.86,137.81,0.71481211]
[1767648683509,0.68540275,137.85,137.81,0.71481211]
[1767648683716,7.94526177,137.86,137.81,0.71481211]
[1767648684400,0.69132602,137.86,137.81,0.71481211]
[1767648684600,21.16475298,137.87,137.81,0.71481211]
[1767648685312,7.94475298,137.87,137.82,0.71481211]
[1767648685504,11.77117649,137.89,137.82,0.71481211]
[1767648685721,21.1636877,137.89,137.82,0.71481211]
[1767648686014,24.99117649,137.89,137.82,0.71481211]
[1767648686218,0.68540275,137.87,137.82,0.71481211]
[1767648686510,0.10486403,137.86,137.82,0.71481211]
[1767648686723,0.67959737,137.85,137.81,0.71481211]
[1767648687504,7.9340162,137.85,137.81,0.71481211]
[1767648688014,0.11061136,137.84,137.8,0.71481211]
[1767648688406,0.11061136,137.84,137.79,0.71481211]
[1767648689918,7.36553002,137.84,137.79,0.71481211]
[1767648690422,0.67390751,137.83,137.78,7.25774877]
[1767648690623,0.67390751,137.83,137.78,7.97256088]
[1767648691023,0.67390751,137.83,137.79,0.71510263]
[1767648693239,0.11624432,137.82,137.77,0.71510263]
[1767648694718,0.66833088,137.81,137.75,0.71510263]
[1767648695108,0.66833088,137.81,137.74,7.9751578]
[1767648695304,0.66833088,137.81,137.74,26.12529574]
[1767648696129,0.66833088,137.81,137.75,0.71510263]
[1767648696323,7.92495242,137.81,137.76,0.71510263]
[1767648696520,0.66833088,137.81,137.76,0.71510263]
[1767648697230,7.92485587,137.81,137.76,0.71510263]
[1767648698517,21.14485587,137.81,137.76,0.71510263]
[1767648702828,0.12176518,137.8,137.76,0.71510263]
[1767648703140,0.66286523,137.79,137.72,0.71510263]
[1767648703437,13.34717618,137.78,137.73,0.71510263]
[1767648703608,13.34717618,137.78,137.72,7.26110097]
[1767648703609,0.65750834,137.77,137.72,7.26110097]
[1767648703807,13.319,137.78,137.73,0.71510263]
[1767648704536,20.57699491,137.78,137.73,0.71510263]
[1767648705835,0.69132602,137.81,137.74,0.71510263]
[1767648706036,13.319,137.8,137.74,0.71510263]
[1767648706933,13.319,137.8,137.75,0.71510263]
[1767648707840,20.57618087,137.8,137.75,0.71510263]
[1767648710246,13.22,137.81,137.76,0.71510263]
[1767648711024,13.19,137.81,137.78,0.71510263]
[1767648711842,0.69132602,137.84,137.78,0.71510263]
[1767648712044,13.91132602,137.84,137.78,0.71510263]
[1767648712344,0.099,137.83,137.74,0.71510263]
[1767648712951,0.099,137.83,137.78,7.25785752]
[1767648713458,20.57401611,137.84,137.78,0.71510263]
[1767648715845,20.57401611,137.84,137.79,0.71492242]
[1767648716739,0.68540275,137.83,137.79,0.71492242]
[1767648717235,13.22,137.84,137.8,0.71492242]
[1767648717845,13.319,137.84,137.8,0.71492242]
[1767648722230,20.57395768,137.84,137.8,0.71492242]
[1767648727356,0.68540275,137.83,137.78,0.65862738]
[1767648728358,7.36070498,137.82,137.78,0.65862738]
[1767648728741,0.68972408,137.85,137.78,0.65862738]
[1767648728946,13.32058592,137.84,137.79,0.65862738]
[1767648729151,0.68383269,137.83,137.79,0.65862738]
[1767648733345,7.93919163,137.83,137.79,0.65862738]
[1767648735269,0.68383269,137.83,137.79,0.65862738]
[1767648735442,0.10058592,137.83,137.79,0.65862738]
[1767648735639,0.10058592,137.83,137.77,7.91688208]
[1767648736574,0.68383269,137.82,137.74,7.91835682]
[1767648736760,0.67805855,137.79,137.74,7.91835682]
[1767648737081,0.67805855,137.79,137.74,0.65862738]
[1767648738566,0.11213479,137.77,137.72,0.65862738]
[1767648739073,0.11213479,137.77,137.72,7.91968379]
[1767648739074,0.67239931,137.76,137.72,7.91968379]
[1767648739448,0.67239931,137.76,137.72,0.65862738]
[1767648740270,0.67239931,137.76,137.72,7.91963291]
[1767648741175,21.16790238,137.78,137.73,0.65862738]
[1767648743078,21.16790238,137.78,137.69,21.57013837]
[1767648743079,0.10058592,137.77,137.71,7.26114407]
[1767648743266,21.16771166,137.78,137.7,0.65862738]
[1767648744287,21.16771166,137.78,137.72,0.65862738]
[1767648744980,13.22,137.77,137.72,0.65862738]
[1767648746501,7.94771166,137.78,137.73,0.65862738]
[1767648746908,13.22,137.77,137.73,0.65862738]
[1767648751921,0.099,137.81,137.74,0.66699508]
[1767648752106,13.319,137.81,137.74,0.66699508]
[1767648752911,20.57554576,137.81,137.74,0.66699508]
[1767648753322,20.57554576,137.81,137.76,0.66699508]
[1767648754910,0.68540275,137.8,137.76,0.66699508]
[1767648755704,7.94233329,137.8,137.76,0.66699508]
[1767648757334,0.10486403,137.79,137.74,0.66699508]
[1767648760119,0.11061136,137.77,137.73,0.66699508]
[1767648760309,21.16927347,137.78,137.72,0.66699508]
[1767648760510,21.16927347,137.78,137.74,0.66699508]
[1767648760511,13.91132602,137.78,137.74,0.66699508]
[1767648761134,0.69132602,137.78,137.74,0.66699508]
[1767648761335,13.319,137.79,137.74,0.66699508]
[1767648761842,13.22,137.79,137.74,0.66699508]
[1767648762737,13.22,137.79,137.74,7.92704872]
[1767648763032,13.22,137.79,137.75,0.66699508]
[1767648770736,0.10486403,137.78,137.75,7.92652152]
[1767648770940,13.22,137.79,137.76,0.66699508]
[1767648772024,13.22,137.81,137.77,0.66699508]
[1767648772739,7.25600682,137.82,137.77,0.66699508]
[1767648773738,21.13123675,137.83,137.78,0.70068028]
[1767648773949,13.87570276,137.83,137.78,0.70068028]
[1767648775949,13.87570276,137.83,137.79,0.70068028]
[1767648776640,21.13102011,137.83,137.79,0.70068028]
[1767648778034,0.10456703,137.82,137.78,0.70068028]
[1767648779460,13.88132603,137.83,137.78,0.70068028]
[1767648779642,0.099,137.82,137.78,0.70068028]
[1767648779848,0.069,137.82,137.78,0.70068028]
[1767648780452,7.25480706,137.84,137.79,0.70068028]
[1767648781044,20.4745142,137.85,137.79,0.70068028]
[1767648781844,0.63132603,137.84,137.79,0.70068028]
[1767648782458,7.88624266,137.84,137.79,0.70068028]
[1767648784262,0.63132603,137.84,137.8,0.72497696]
[1767648784857,7.88616304,137.84,137.8,0.72497696]
[1767648785864,0.63132603,137.84,137.8,0.72497696]
[1767648786870,20.47448411,137.85,137.8,0.72497696]
[1767648787164,20.57348411,137.85,137.8,0.72497696]
[1767648787865,0.62600276,137.84,137.8,0.72497696]
[1767648788362,7.88092082,137.84,137.8,0.72497696]
[1767648788957,0.62600276,137.84,137.8,0.72497696]
[1767648789350,20.47449862,137.85,137.81,0.72497696]
[1767648789351,13.85132603,137.85,137.81,0.72497696]
[1767648791350,0.63132603,137.85,137.81,0.72497696]
[1767648793072,20.47397585,137.86,137.81,0.72497696]
[1767648793258,13.319,137.86,137.82,0.72497696]
[1767648793656,0.63132603,137.88,137.82,0.72497696]
[1767648793858,0.099,137.87,137.81,7.98127899]
[1767648794053,0.099,137.87,137.82,0.72497696]
[1767648795767,0.099,137.87,137.83,0.72497696]
[1767648798069,0.63132603,137.93,137.83,0.72497696]
[1767648798250,0.63132603,137.91,137.84,0.72497696]
[1767648799956,0.63132603,137.91,137.82,13.22]
[1767648800160,0.63132603,137.91,137.82,21.81341092]
[1767648800977,0.63132603,137.91,137.85,7.25426187]
[1767648802074,0.63132603,137.91,137.87,0.72497696]
[1767648803557,7.8825156,137.91,137.87,0.72497696]
[1767648803763,0.68305565,137.9,137.86,0.72497696]
[1767648804558,0.68305565,137.9,137.86,7.97870359]
[1767648805955,0.68305565,137.9,137.86,0.72497696]
[1767648806578,21.15383507,137.92,137.87,0.72497696]
[1767648807253,0.68305565,137.95,137.87,0.72497696]
[1767648807455,0.68305565,137.95,137.88,0.72497696]
[1767648808864,0.68305565,137.95,137.9,0.72497696]
[1767648812590,0.71905178,137.94,137.88,7.95517685]
[1767648812883,0.71905178,137.93,137.88,7.95517685]
[1767648813187,0.71905178,137.93,137.89,0.70249336]
[1767648813387,0.71905178,137.94,137.89,0.64249337]
[1767648814469,0.71905178,137.94,137.9,7.25163161]
[1767648815187,0.71905178,137.95,137.9,7.25163161]
[1767648815379,0.71905178,137.95,137.91,0.70249336]
[1767648817078,0.2,137.96,137.92,0.70249336]
[1767648818090,0.2,137.98,137.96,0.70249336]
[1767648821104,0.2,137.98,137.96,7.95083361]
[1767648821473,0.2,137.99,137.97,0.70249336]
[1767648821868,0.71905178,137.98,137.94,7.24951838]
[1767648822188,0.71905178,137.98,137.95,0.70249336]
[1767648823472,0.91905178,137.99,137.95,0.70249336]
[1767648824392,0.71905178,137.98,137.94,7.24951838]
[1767648824584,0.71905178,137.98,137.94,0.70249336]
[1767648824797,0.71905178,137.98,137.92,7.95292904]
[1767648824979,0.71905178,137.96,137.92,0.70249336]
[1767648825180,0.71905178,137.96,137.89,0.70249336]
[1767648825483,0.71905178,137.95,137.89,0.70249336]
[1767648825879,0.71905178,137.95,137.89,7.95427778]
[1767648826078,0.71905178,137.95,137.9,0.70249336]
[1767648827496,0.71905178,137.94,137.9,0.70249336]
[1767648829597,0.71905178,137.94,137.89,7.25178442]
[1767648829777,0.71905178,137.93,137.89,0.70249336]
[1767648830384,7.24918779,137.95,137.9,0.70249336]
[1767648830690,0.71905178,137.94,137.9,0.70249336]
[1767648831506,0.71905178,137.93,137.87,0.70249336]
[1767648831698,0.71905178,137.92,137.87,7.95563001]
[1767648832412,0.71905178,137.92,137.88,0.70249336]
[1767648834887,0.72143309,137.91,137.86,7.93908891]
[1767648835195,0.72143309,137.91,137.86,0.68535336]
[1767648835593,0.72143309,137.91,137.86,7.93898539]
[1767648836514,0.72143309,137.93,137.88,0.68535336]
[1767648836705,0.72143309,137.92,137.88,0.68535336]